bitfinex/quotes_SOLUSD_20251226
["timestamp","ask_amount","ask_price","bid_price","bid_amount"]
[1766721388098,12.28640117,122.63,122.59,0.71]
[1766721389891,11.60640117,122.63,122.59,0.71]
[1766721390093,0.68,122.62,122.59,0.71]
[1766721390698,4.1315881,122.62,122.59,0.71]
[1766721392101,12.28695855,122.62,122.59,0.71]
[1766721392394,0.68,122.61,122.59,0.71]
[1766721392599,0.68,122.6,122.57,4.1615881]
[1766721392993,0.68,122.6,122.57,3.4515881]
[1766721393303,3.4515881,122.61,122.58,0.71]
[1766721393502,4.1315881,122.61,122.58,0.71]
[1766721394396,20.3872707,122.63,122.58,3.4515881]
[1766721394397,0.68,122.6,122.58,3.4515881]
[1766721394602,27.18578851,122.64,122.6,0.71]
[1766721394811,5.4061741,122.63,122.6,4.1615881]
[1766721394990,6.0861741,122.63,122.6,4.1615881]
[1766721395306,0.68,122.63,122.6,4.1615881]
[1766721396110,0.68,122.62,122.59,0.71]
[1766721398694,0.68,122.62,122.59,4.1615881]
[1766721402517,12.28573251,122.64,122.6,0.7]
[1766721402717,8.83414441,122.64,122.6,0.7]
[1766721402903,12.28573251,122.64,122.6,0.7]
[1766721403894,8.83414441,122.64,122.6,0.7]
[1766721404216,12.28573251,122.64,122.6,0.7]
[1766721404822,12.28573251,122.64,122.61,0.68]
[1766721411735,11.60622031,122.63,122.61,0.68]
[1766721411901,4.1715881,122.62,122.58,0.68]
[1766721414025,8.87588409,122.62,122.58,0.68]
[1766721414725,8.15588409,122.62,122.58,0.68]
[1766721414924,0.72,122.61,122.58,0.68]
[1766721419326,0.72,122.62,122.58,11.60937235]
[1766721419508,0.72,122.62,122.59,0.68]
[1766721420111,8.87422666,122.64,122.6,4.1315881]
[1766721420404,12.40679956,122.66,122.64,0.68]
[1766721420732,8.87140421,122.68,122.65,0.68]
[1766721421036,5.40971676,122.67,122.65,0.68]
[1766721421234,0.72,122.66,122.63,0.68]
[1766721421442,0.72,122.65,122.63,0.68]
[1766721422312,0.72,122.64,122.62,14.9]
[1766721422729,0.72,122.64,122.61,0.68]
[1766721423353,0.72,122.65,122.62,4.1315881]
[1766721423631,0.72,122.65,122.62,0.68]
[1766721423804,4.1715881,122.65,122.62,0.68]
[1766721424005,2.92847552,122.65,122.62,0.68]
[1766721426332,2.92847552,122.65,122.6,25.26485945]
[1766721426333,0.72,122.63,122.6,15.58]
[1766721426717,2.92847552,122.63,122.6,15.58]
[1766721426922,0.72,122.63,122.6,14.9]
[1766721427238,2.92847552,122.64,122.61,0.68]
[1766721431036,11.08269421,122.64,122.61,0.68]
[1766721432329,8.87421869,122.64,122.61,0.68]
[1766721432522,0.72,122.64,122.61,0.68]
[1766721433819,11.08244855,122.64,122.61,0.68]
[1766721434029,2.20847552,122.63,122.61,0.68]
[1766721434240,2.92847552,122.63,122.6,15.59]
[1766721434436,2.92847552,122.63,122.6,0.69]
[1766721438238,0.72,122.63,122.6,0.69]
[1766721438545,2.92847552,122.63,122.6,0.69]
[1766721440556,0.72,122.63,122.6,0.69]
[1766721440756,2.92847552,122.63,122.6,0.69]
[1766721441856,0.72,122.63,122.6,0.69]
[1766721443837,11.08244855,122.64,122.6,0.69]
[1766721444637,0.72,122.64,122.61,0.69]
[1766721445554,10.36202458,122.65,122.61,0.69]
[1766721445767,0.72,122.64,122.61,0.69]
[1766721448552,2.92847552,122.64,122.61,0.69]
[1766721450657,2.20847552,122.64,122.6,8.15657366]
[1766721450860,0.72,122.63,122.6,8.15657366]
[1766721451066,0.72,122.63,122.6,8.84657366]
[1766721451364,0.72,122.63,122.61,0.69]
[1766721456372,8.87288565,122.66,122.62,0.69]
[1766721456550,10.36136117,122.66,122.61,17.10847552]
[1766721456751,10.36136117,122.66,122.62,0.69]
[1766721456752,2.92847552,122.65,122.62,0.69]
[1766721457244,11.08189813,122.65,122.62,0.69]
[1766721458047,2.92847552,122.64,122.61,15.59]
[1766721458247,2.92847552,122.64,122.62,0.69]
[1766721458466,11.08245945,122.64,122.62,0.69]
[1766721458657,11.08245945,122.64,122.61,15.59]
[1766721458858,8.87398393,122.64,122.61,15.59]
[1766721459169,11.08245945,122.64,122.61,15.59]
[1766721460969,11.08245945,122.64,122.61,0.69]
[1766721462573,8.87398393,122.64,122.61,0.69]
[1766721462763,2.92847552,122.64,122.61,0.69]
[1766721463984,2.92847552,122.64,122.6,8.15630289]
[1766721463985,0.67,122.63,122.6,8.83630289]
[1766721464159,2.87847552,122.64,122.61,0.68]
[1766721464480,2.20847552,122.64,122.61,0.68]
[1766721464665,0.67,122.63,122.61,0.68]
[1766721465073,2.87847552,122.64,122.61,0.68]
[1766721465677,2.20847552,122.64,122.61,0.68]
[1766721466075,10.36245265,122.64,122.61,0.68]
[1766721466256,11.03245265,122.64,122.61,0.68]
[1766721471573,0.67,122.63,122.61,0.68]
[1766721471770,11.03245265,122.64,122.61,0.68]
[1766721473593,0.67,122.7,122.63,0.68]
[1766721473770,8.29243919,122.69,122.64,2.20847552]
[1766721473971,2.87847552,122.69,122.65,0.68]
[1766721474193,0.67,122.68,122.65,0.68]
[1766721474369,2.87847552,122.68,122.65,0.68]
[1766721478993,0.67,122.68,122.65,0.68]
[1766721479189,0.67,122.68,122.65,2.88847552]
[1766721484119,11.02922727,122.69,122.66,0.68]
[1766721484617,8.82075175,122.69,122.66,0.68]
[1766721485199,0.67,122.69,122.66,2.88847552]
[1766721485705,0.67,122.69,122.66,2.20847552]
[1766721485908,0.67,122.69,122.66,3.44768306]
[1766721486419,4.82615102,122.73,122.69,0.68]
[1766721486604,0.57,122.72,122.69,0.68]
[1766721486803,3.44768306,122.73,122.7,0.68]
[1766721487003,3.44768306,122.72,122.66,53.85183217]
[1766721487305,4.01768306,122.71,122.68,0.68]
[1766721487726,0.57,122.71,122.66,36.91780156]
[1766721488024,0.57,122.71,122.67,0.68]
[1766721488215,4.01768306,122.71,122.68,0.68]
[1766721489322,12.16715307,122.71,122.68,0.68]
[1766721491522,12.16715307,122.71,122.68,1.16e-05]
[1766721492843,12.16715307,122.71,122.67,4.25e-06]
[1766721493024,12.16715307,122.71,122.66,23.03244554]
[1766721493323,12.26715307,122.71,122.66,23.03244554]
[1766721493526,12.26715307,122.71,122.66,26.4801286]
[1766721494824,12.26715307,122.71,122.68,0.7]
[1766721495926,8.81947001,122.71,122.68,0.7]
[1766721496130,12.26715307,122.71,122.68,0.7]
[1766721498631,11.59715307,122.71,122.66,14.88]
[1766721498816,4.12768306,122.7,122.66,19.02768306]
[1766721499329,4.12768306,122.7,122.67,0.7]
[1766721500121,3.44768306,122.7,122.67,0.7]
[1766721500327,0.68,122.7,122.68,0.7]
[1766721500729,0.68,122.71,122.68,0.7]
[1766721500930,4.12768306,122.71,122.68,0.7]
[1766721507939,0.68,122.71,122.68,4.14768306]
[1766721508139,0.68,122.71,122.68,0.7]
[1766721510840,4.12768306,122.71,122.68,0.7]
[1766721512644,3.44768306,122.7,122.68,0.7]
[1766721512828,4.12768306,122.7,122.68,0.7]
[1766721513349,4.12768306,122.7,122.67,0.7]
[1766721513723,4.12768306,122.69,122.64,51.79902287]
[1766721513930,4.12768306,122.68,122.65,0.7]
[1766721515939,12.27926419,122.68,122.65,0.7]
[1766721516125,4.12768306,122.67,122.64,0.7]
[1766721516730,0.68,122.66,122.63,8.15453393]
[1766721517052,0.68,122.65,122.61,19.02768306]
[1766721517248,0.68,122.65,122.62,3.44768306]
[1766721517545,0.68,122.65,122.62,11.60288575]
[1766721518850,0.68,122.65,122.62,12.30288575]
[1766721519851,0.68,122.67,122.64,3.44768306]
[1766721522031,27.18919315,122.68,122.65,0.67]
[1766721522826,18.32768306,122.68,122.65,0.67]
[1766721523031,4.15768306,122.69,122.66,0.67]
[1766721523546,3.44768306,122.68,122.66,0.67]
[1766721524051,4.15768306,122.69,122.66,0.67]
[1766721524722,3.44768306,122.68,122.64,11.60140078]
[1766721524928,3.44768306,122.68,122.65,0.7]
[1766721527553,12.29837698,122.69,122.65,0.7]
[1766721528851,8.85069392,122.69,122.65,0.7]
[1766721529055,12.29837698,122.69,122.65,0.7]
[1766721530955,8.15069392,122.69,122.65,3.44768306]
[1766721531153,8.15069392,122.69,122.67,0.7]
[1766721531538,12.29837698,122.69,122.66,0.7]
[1766721534667,4.14768306,122.68,122.63,8.15454234]
[1766721534880,4.14768306,122.68,122.64,3.44768306]
[1766721535163,4.14768306,122.67,122.65,0.7]
[1766721535744,0.7,122.67,122.65,0.7]
[1766721536164,8.85201716,122.67,122.65,0.7]
[1766721541045,11.59919081,122.68,122.65,0.7]
[1766721541248,8.85150775,122.68,122.65,4.14768306]
[1766721541554,8.15150775,122.68,122.66,0.7]
[1766721541862,8.85150775,122.68,122.66,0.7]
[1766721543567,8.15083496,122.69,122.66,0.7]
[1766721543977,8.85083496,122.69,122.66,0.7]
[1766721544155,12.29851802,122.69,122.66,0.7]
[1766721546254,22.73553618,122.7,122.67,0.7]
[1766721547252,8.84941347,122.71,122.68,0.7]
[1766721549077,11.05563432,122.71,122.68,0.7]
[1766721549872,23.0287901,122.72,122.68,2.20622085]
[1766721550080,25.93501095,122.72,122.69,0.7]
[1766721552974,17.78622085,122.72,122.69,0.7]
[1766721553481,25.93488992,122.72,122.69,0.7]
[1766721557873,2.20622085,122.71,122.69,0.7]
[1766721559186,2.86622085,122.71,122.68,8.1512795]
[1766721559372,0.66,122.7,122.68,8.8412795]
[1766721560085,0.66,122.7,122.67,8.84193072]
[1766721560266,0.66,122.7,122.67,11.04815157]
[1766721561578,2.20622085,122.71,122.67,10.35815157]
[1766721561777,2.86622085,122.71,122.68,0.69]
[1766721561963,11.01561539,122.71,122.68,0.69]
[1766721562171,0.66,122.7,122.67,0.69]
[1766721562368,2.86622085,122.7,122.67,0.69]
[1766721562570,2.20622085,122.7,122.67,0.69]
[1766721562784,0.66,122.69,122.67,0.69]
[1766721564394,2.86622085,122.69,122.66,0.69]
[1766721565085,2.86622085,122.68,122.64,2.20622085]
[1766721565281,2.86622085,122.68,122.65,0.69]
[1766721566481,0.66,122.67,122.65,0.69]
[1766721568084,0.66,122.67,122.64,2.20622085]
[1766721568391,8.81129243,122.68,122.65,0.69]
[1766721568586,11.01751328,122.68,122.65,0.69]
[1766721569596,0.66,122.68,122.65,0.69]
[1766721569770,2.86622085,122.68,122.65,0.69]
[1766721571392,0.66,122.67,122.64,11.05012917]
[1766721571894,2.20622085,122.68,122.65,0.69]
[1766721572194,2.86622085,122.68,122.65,0.69]
[1766721573291,0.66,122.68,122.65,2.89622085]
[1766721577593,2.86622085,122.68,122.65,0.69]
[1766721582195,2.20622085,122.68,122.65,0.69]
[1766721583502,2.86622085,122.68,122.65,0.69]
[1766721585409,8.15133842,122.68,122.63,8.15431879]
[1766721585696,2.20622085,122.66,122.64,0.7]
[1766721586282,2.91622085,122.67,122.64,0.7]
[1766721592610,10.43767296,122.72,122.64,2.20622085]
[1766721592791,0.71,122.7,122.67,0.7]
[1766721592992,2.91622085,122.7,122.67,0.7]
[1766721593193,2.91622085,122.68,122.64,2.90622085]
[1766721593901,2.91622085,122.68,122.64,0.7]
[1766721594102,2.91622085,122.68,122.64,2.90622085]
[1766721595511,2.91622085,122.68,122.65,0.7]
[1766721596208,14.88,122.69,122.67,0.7]
[1766721596389,0.71,122.69,122.65,2.90622085]
[1766721596594,2.91622085,122.69,122.66,0.7]
[1766721596794,0.71,122.69,122.66,2.20622085]
[1766721596989,0.71,122.69,122.67,0.7]
[1766721598718,2.91622085,122.69,122.67,0.7]
[1766721600416,2.91622085,122.7,122.67,0.7]
[1766721601720,2.91622085,122.69,122.66,0.7]
[1766721603498,17.79622085,122.71,122.68,0.7]
[1766721603714,2.91622085,122.69,122.66,0.7]
[1766721604717,0.71,122.69,122.66,0.7]
[1766721606903,2.20622085,122.7,122.66,2.20622085]
[1766721607107,2.20622085,122.7,122.67,0.7]
[1766721607522,2.91622085,122.7,122.67,0.7]
[1766721607817,0.71,122.7,122.67,0.7]
[1766721608023,36.38277615,122.72,122.68,0.7]
[1766721608221,5.44018855,122.71,122.68,0.7]
[1766721608429,8.3564094,122.71,122.68,0.7]
[1766721608723,2.91622085,122.71,122.68,0.7]
[1766721609115,2.20622085,122.7,122.66,2.20622085]
[1766721609330,8.35689984,122.69,122.66,0.7]
[1766721609523,2.91622085,122.69,122.66,0.7]
[1766721609712,0.71,122.68,122.66,0.7]
[1766721610020,4.15919078,122.68,122.65,0.7]
[1766721610420,0.71,122.68,122.65,0.7]
[1766721610923,8.86102142,122.69,122.65,0.7]
[1766721611228,12.3102122,122.69,122.65,0.7]
[1766721613727,27.1902122,122.69,122.65,0.7]
[1766721616032,4.12919078,122.68,122.65,0.7]
[1766721616404,0.68,122.68,122.65,0.7]
[1766721616619,4.12919078,122.68,122.65,0.7]
[1766721617707,11.60081765,122.68,122.62,43.64686374]
[1766721617912,14.88,122.69,122.63,0.66]
[1766721617913,0.68,122.66,122.63,0.66]
[1766721619610,12.28199882,122.66,122.63,0.66]
[1766721619812,0.68,122.64,122.61,0.66]
[1766721620023,0.68,122.64,122.61,4.10919078]
[1766721620224,0.68,122.64,122.61,0.66]
[1766721621005,0.68,122.63,122.6,0.66]
[1766721621204,4.12919078,122.63,122.6,0.66]
[1766721621738,12.28409611,122.63,122.6,0.66]
[1766721622515,4.12919078,122.62,122.58,3.44919078]
[1766721622717,4.12919078,122.61,122.58,0.66]
[1766721624211,12.28544828,122.61,122.58,0.66]
[1766721625529,0.68,122.6,122.58,0.66]
[1766721625727,0.68,122.6,122.57,0.66]
[1766721626938,4.12919078,122.6,122.57,0.66]
[1766721627237,0.68,122.6,122.57,0.66]
[1766721627439,4.12919078,122.6,122.57,0.66]
[1766721627638,12.2859906,122.6,122.57,0.66]
[1766721628434,11.6059906,122.6,122.57,0.66]
[1766721628628,0.68,122.59,122.57,0.66]
[1766721629836,0.68,122.62,122.58,0.66]
[1766721630046,12.28446724,122.62,122.58,4.10919078]
[1766721630341,0.68,122.61,122.58,4.10919078]
[1766721631122,4.12919078,122.59,122.56,0.66]
[1766721632226,0.68,122.59,122.56,0.66]
[1766721632419,4.12919078,122.59,122.56,0.66]
[1766721632622,3.44919078,122.58,122.56,0.66]
[1766721632822,12.28673455,122.59,122.56,0.66]
[1766721633319,0.68,122.59,122.56,0.66]
[1766721634757,12.28664894,122.59,122.56,0.66]
[1766721634924,4.12919078,122.58,122.55,0.66000001]
[1766721636523,4.12919078,122.57,122.55,1e-08]
[1766721638130,0.68,122.57,122.55,1e-08]
[1766721638349,4.12919078,122.57,122.55,1e-08]
[1766721639059,0.68,122.56,122.55,1e-08]
[1766721639348,4.12919078,122.56,122.55,1e-08]
[1766721639555,0.68,122.56,122.55,1e-08]
[1766721639857,4.12919078,122.56,122.55,1e-08]
[1766721640055,3.44919078,122.56,122.55,1e-08]
[1766721640270,3.44919078,122.56,122.54,0.1]
[1766721640550,4.12919078,122.55,122.53,0.1]
[1766721640756,0.68,122.54,122.53,0.1]
[1766721640962,12.2897914,122.54,122.53,0.1]
[1766721641453,8.84060062,122.54,122.53,0.1]
[1766721641641,12.2897914,122.54,122.53,0.1]
[1766721642156,4.12919078,122.54,122.53,0.1]
[1766721643661,0.67,122.53,122.51,0.1]
[1766721643843,4.11919078,122.53,122.51,0.1]
[1766721645061,12.28064209,122.53,122.51,0.1]
[1766721646661,11.61064209,122.53,122.51,0.78]
[1766721647362,12.33064209,122.53,122.51,0.78]
[1766721648666,12.33064209,122.53,122.51,0.1]
[1766721649763,11.61064209,122.53,122.51,0.78]
[1766721650353,8.16145131,122.53,122.51,0.78]
[1766721650552,0.72,122.54,122.49,3.44919078]
[1766721650746,15.62,122.54,122.5,0.68]
[1766721650948,3.44919078,122.53,122.5,0.68]
[1766721651350,3.44919078,122.52,122.5,0.68]
[1766721651662,4.16919078,122.52,122.49,0.68]
[1766721651863,12.33129614,122.52,122.49,0.68]
[1766721652569,8.88210536,122.52,122.49,0.68]
[1766721652875,12.33129614,122.52,122.49,0.68]
[1766721653081,4.16919078,122.53,122.49,4.12919078]
[1766721654475,0.72,122.49,122.47,5.84903888]
[1766721654771,0.72,122.49,122.45,0.68]
[1766721654772,4.16919078,122.48,122.45,0.68]
[1766721655978,0.72,122.48,122.45,0.68]
[1766721656153,4.16919078,122.48,122.45,0.68]
[1766721656577,3.44919078,122.47,122.45,0.68]
[1766721657045,18.34919078,122.46,122.41,0.68]
[1766721657247,19.06919078,122.46,122.42,3.44919078]
[1766721657449,19.06919078,122.46,122.43,0.68]
[1766721658877,0.72,122.45,122.42,0.68]
[1766721659742,18.34919078,122.46,122.42,0.68]
[1766721659945,19.06919078,122.46,122.42,0.68]
[1766721660551,4.16919078,122.46,122.42,0.68]
[1766721660879,19.06919078,122.46,122.42,8.84858577]
[1766721661046,19.06919078,122.46,122.42,12.29777655]
[1766721661467,19.06919078,122.47,122.44,0.68]
[1766721662075,4.16919078,122.47,122.44,0.68]
[1766721662250,12.33391395,122.48,122.45,0.68]
[1766721662451,27.23391395,122.48,122.45,0.68]
[1766721662851,27.23391395,122.48,122.44,0.68]
[1766721663055,3.44919078,122.47,122.44,0.68]
[1766721663264,4.16919078,122.47,122.44,0.68]
[1766721664051,3.44919078,122.46,122.42,12.29746906]
[1766721664257,3.44919078,122.43,122.39,0.68]
[1766721664572,14.9,122.42,122.39,11.11767296]
[1766721664782,15.62,122.42,122.38,0.78]
[1766721664946,19.06919078,122.42,122.38,0.78]
[1766721665354,4.16919078,122.41,122.38,0.1]
[1766721665686,0.72,122.38,122.34,24.52483139]
[1766721665866,0.72,122.38,122.33,8.85428565]
[1766721665867,3.44919078,122.36,122.33,8.85428565]
[1766721666066,3.44919078,122.36,122.33,0.68]
[1766721666769,18.34919078,122.37,122.34,0.68]
[1766721666970,0.72,122.38,122.34,3.44919078]
[1766721667172,15.62,122.38,122.34,0.68]
[1766721667376,3.44919078,122.37,122.34,0.68]
[1766721668050,14.9,122.38,122.35,4.12919078]
[1766721668475,26.52046922,122.38,122.35,0.68]
[1766721668786,4.16919078,122.37,122.33,4.12919078]
[1766721669074,4.16919078,122.37,122.34,0.68]
[1766721669455,14.92,122.37,122.35,0.68]
[1766721669666,14.92,122.37,122.35,4.12919078]
[1766721669948,14.92,122.37,122.35,0.68]
[1766721670549,4.16919078,122.36,122.33,0.68]
[1766721670786,3.44919078,122.35,122.32,0.68]
[1766721671163,4.16919078,122.35,122.32,0.68]
[1766721671380,4.16919078,122.36,122.32,4.12919078]
[1766721671858,4.16919078,122.35,122.32,0.68]
[1766721672061,17.85918814,122.34,122.3,2.21918814]
[1766721672275,14.92,122.34,122.29,10.43767296]
[1766721672589,14.92,122.34,122.31,2.89918814]
[1766721672784,14.92,122.34,122.32,0.68]
[1766721673153,2.93918814,122.36,122.32,8.85516908]
[1766721673357,14.92,122.35,122.33,0.5]
[1766721674963,17.13918814,122.35,122.33,0.5]
[1766721675165,15.64,122.36,122.33,0.5]
[1766721675502,17.85918814,122.36,122.33,0.5]
[1766721676167,26.03186819,122.36,122.33,0.5]
[1766721676375,2.21918814,122.34,122.33,0.5]
[1766721676881,2.90918814,122.35,122.33,0.5]
[1766721677079,0.69,122.35,122.33,0.5]
[1766721677281,0.69,122.35,122.32,2.92918814]
[1766721677597,17.82918814,122.36,122.32,11.10437881]
[1766721678473,17.82918814,122.36,122.32,8.88519067]
[1766721678690,17.82918814,122.36,122.32,11.10437881]
[1766721679689,26.00191442,122.36,122.32,2.92918814]
[1766721680081,11.08191442,122.36,122.32,2.92918814]
[1766721680280,2.21918814,122.33,122.3,0.71]
[1766721680798,14.92,122.34,122.32,0.71]
[1766721681383,15.61,122.34,122.31,2.21918814]
[1766721681586,14.92,122.34,122.31,2.92918814]
[1766721682606,14.92,122.34,122.31,0.71]
[1766721682808,8.8612807,122.38,122.34,0.71]
[1766721683097,14.92,122.37,122.34,2.92918814]
[1766721683314,14.92,122.37,122.31,8.17590881]
[1766721683612,2.90918814,122.35,122.32,0.71]
[1766721684004,2.90918814,122.35,122.31,2.92918814]
[1766721684530,11.08254512,122.35,122.31,2.92918814]
[1766721685393,0.69,122.34,122.31,2.92918814]
[1766721685886,0.69,122.34,122.31,0.71]
[1766721687214,2.21918814,122.35,122.31,11.10503975]
[1766721687598,0.69,122.35,122.32,0.71]
[1766721687797,2.90918814,122.35,122.32,0.71]
[1766721688521,2.90918814,122.35,122.31,10.39503975]
[1766721688522,0.69,122.34,122.3,2.92918814]
[1766721689516,0.69,122.34,122.29,18.61429584]
[1766721689517,2.90918814,122.31,122.28,0.71]
[1766721689813,2.21918814,122.3,122.27,0.71]
[1766721691198,2.21918814,122.29,122.27,0.71]
[1766721691514,2.21918814,122.29,122.26,0.71]
[1766721692019,2.21918814,122.29,122.26,8.88916547]
[1766721692220,2.90918814,122.3,122.27,0.71]
[1766721692617,2.90918814,122.3,122.26,10.39835361]
[1766721692808,2.21918814,122.29,122.25,11.10892283]
[1766721693008,2.21918814,122.29,122.26,8.17925187]
[1766721693208,2.90918814,122.3,122.26,8.88925187]
[1766721694296,2.90918814,122.3,122.27,0.71]
[1766721694915,14.92,122.3,122.28,0.71]
[1766721695098,14.92,122.32,122.29,0.71]
[1766721695298,15.61,122.32,122.29,0.71]
[1766721695603,0.69,122.3,122.27,2.92918814]
[1766721695801,2.90918814,122.3,122.27,0.71]
[1766721696002,2.21918814,122.29,122.26,0.71]
[1766721696501,2.21918814,122.29,122.24,18.61818142]
[1766721696707,0.69,122.27,122.24,20.83736956]
[1766721696909,2.21918814,122.28,122.24,21.54736956]
[1766721697121,2.21918814,122.28,122.25,0.71]
[1766721698019,17.82918814,122.29,122.26,0.71]
[1766721698220,15.61,122.29,122.26,0.71]
[1766721698419,17.82918814,122.29,122.26,0.71]
[1766721698612,2.90918814,122.3,122.26,0.71]
[1766721698918,17.82918814,122.3,122.26,2.92918814]
[1766721699295,2.90918814,122.3,122.27,0.71]
[1766721699500,17.82918814,122.3,122.27,0.71]
[1766721700399,2.21918814,122.31,122.28,0.71]
[1766721700716,14.92,122.32,122.29,2.92918814]
[1766721700917,14.92,122.33,122.29,2.92918814]
[1766721701501,15.61,122.33,122.29,2.92918814]
[1766721702214,14.92,122.33,122.3,2.21918814]
[1766721702432,2.91918814,122.35,122.31,2.93918814]
[1766721702616,2.91918814,122.36,122.32,2.93918814]
[1766721702794,17.83918814,122.36,122.32,2.93918814]
[1766721704110,26.01211108,122.36,122.32,0.72]
[1766721704807,15.62,122.36,122.33,0.65]
[1766721705123,0.66,122.39,122.35,2.86918814]
[1766721705416,15.58,122.39,122.35,2.86918814]
[1766721706028,17.79918814,122.39,122.35,2.86918814]
[1766721706223,15.58,122.39,122.35,2.86918814]
[1766721706413,17.79918814,122.39,122.35,2.86918814]
[1766721706612,17.79918814,122.39,122.35,11.04231493]
[1766721708723,15.58,122.39,122.36,2.21918814]
[1766721709025,14.92,122.39,122.37,2.86918814]
[1766721709631,0.66,122.4,122.37,2.86918814]
[1766721709806,15.58,122.4,122.36,0.65]
[1766721709997,15.58,122.4,122.36,2.86918814]
[1766721710201,10.38857238,122.41,122.36,2.21918814]
[1766721710432,8.82813229,122.43,122.39,2.86918814]
[1766721710624,11.04732043,122.43,122.39,2.86918814]
[1766721711316,0.66,122.43,122.4,2.86918814]
[1766721712023,11.04734291,122.43,122.4,0.65]
[1766721713232,8.82815477,122.43,122.4,0.65]
[1766721713430,11.04734291,122.43,122.4,0.65]
[1766721713631,2.21918814,122.42,122.4,0.65]
[1766721713933,11.04734291,122.43,122.39,0.65]
[1766721714524,2.21918814,122.42,122.39,0.65]
[1766721714912,11.04734291,122.43,122.39,2.86918814]
[1766721715509,11.04734291,122.43,122.39,0.65]
[1766721715917,11.04734291,122.43,122.39,2.86918814]
[1766721716134,11.04734291,122.43,122.39,0.65]
[1766721716315,2.87918814,122.43,122.39,0.65]
[1766721716521,2.87918814,122.43,122.4,0.65]
[1766721718635,11.04728125,122.43,122.4,0.65]
[1766721719835,2.21918814,122.42,122.38,0.65]
[1766721720039,2.87918814,122.41,122.38,0.65]
[1766721720416,0.66,122.41,122.38,0.65]
[1766721720742,2.87918814,122.41,122.38,0.65]
[1766721721038,2.21918814,122.4,122.36,10.43767296]
[1766721721221,2.21918814,122.39,122.36,0.65]
[1766721721422,2.87918814,122.4,122.36,0.65]
[1766721721943,2.87918814,122.4,122.36,2.86918814]
[1766721722330,2.87918814,122.4,122.36,0.65]
[1766721722743,2.21918814,122.39,122.36,0.65]
[1766721722944,0.66,122.39,122.35,0.65]
[1766721723126,2.21918814,122.38,122.35,0.65]
[1766721723330,2.87918814,122.38,122.34,0.65]
[1766721723643,2.21918814,122.36,122.33,0.65]
[1766721723832,2.87918814,122.37,122.33,11.04375333]
[1766721724434,2.87918814,122.37,122.33,8.82456519]
[1766721724634,11.05115308,122.37,122.33,2.86918814]
[1766721724941,2.21918814,122.36,122.33,0.65]
[1766721725145,2.87918814,122.35,122.31,11.08767296]
[1766721725341,0.66,122.34,122.31,0.65]
[1766721725946,0.66,122.34,122.31,8.82585575]
[1766721726144,0.66,122.34,122.31,8.17585575]
[1766721726344,0.66,122.34,122.3,20.83322881]
[1766721726646,2.21918814,122.33,122.29,11.0462219]
[1766721726846,0.66,122.33,122.29,0.65]
[1766721727051,2.87918814,122.33,122.29,0.65]
[1766721727255,0.66,122.33,122.29,0.65]
[1766721727463,2.87918814,122.33,122.29,2.86918814]
[1766721728247,2.87918814,122.33,122.3,0.65]
[1766721729131,2.87918814,122.33,122.29,11.04646957]
[1766721729453,2.21918814,122.31,122.27,11.08767296]
[1766721729758,2.87918814,122.3,122.26,10.39844485]
[1766721729928,2.87918814,122.3,122.26,0.65]
[1766721730127,2.87918814,122.3,122.26,2.86918814]
[1766721730657,2.87918814,122.3,122.26,8.8292518]
[1766721731646,0.66,122.29,122.26,0.65]
[1766721731834,2.87918814,122.29,122.26,0.65]